Cogmind - Beta 13 @@@ ROGUE MODE // 2024.04.10 @ 00:22:48 Player: Xidas Result: Self-destructed Performance ------------- Evolutions (1) 500 Regions Visited (2) 400 Robots Destroyed (13) 65 Value Destroyed (184) 184 Prototype IDs (4) 80 Alien Tech Used (0) 0 Bonus (0) 0 TOTAL SCORE: 1229 Bonus ------- None Cogmind --------- Core Integrity 373/400 Matter 80/300 Energy 92/100 System Corruption 0% Temperature Cool (0) Movement Core (100) Ox1 Location -9/Materials Parts ------- > --- POWER (1) -------- (None) > --- PROPULSION (4) --- (None) > --- UTILITY (2) ------ Small Storage Unit Transport Network Coupler > --- WEAPON (2) ------- (None) > --- INVENTORY (8) ---- Light Nuclear Core Compact Battery (200) Compact Battery (200) Advanced Targeting Computer Advanced Targeting Computer Advanced Targeting Computer Peak State ------------ > --- POWER ------------ Light Nuclear Core > --- PROPULSION ------- Flight Unit Flight Unit Flight Unit VTOL Module > --- UTILITY ---------- Small Storage Unit Transport Network Coupler > --- WEAPON ----------- Medium Laser Assault Rifle > --- INVENTORY -------- Light Nuclear Core Flight Unit Compact Battery Compact Battery Compact Battery Advanced Targeting Computer Advanced Targeting Computer Advanced Targeting Computer [Rating: 14] Favorites ----------- Power Ion Engine Engine Ion Engine Power Core Light Nuclear Core Propulsion Flight Unit Wheel Wheel Flight Unit Flight Unit Utility Small Storage Unit Storage Small Storage Unit Processor Transport Network Coupler Protection Light Armor Plating Weapon Assault Rifle Energy Gun Medium Laser Ballistic Gun Assault Rifle Build | -11 -10 -9 ------- Run | Yrd Mat Mat Slots Evolved 2 | . . 2 Power . | . . . Propulsion 2 | . . 2 Utility . | . . . Weapon . | . . . Parts Attached 27 | 6 3 18 Power 6 | 1 1 4 Engine 3 | 1 1 1 Core 3 | . . 3 Reactor . | . . . Propulsion 13 | 2 . 11 Treads . | . . . Leg . | . . . Wheel 2 | 2 . . Hover . | . . . Flight 11 | . . 11 Utility 3 | 1 2 . Device . | . . . Storage 1 | 1 . . Processor 1 | . 1 . Hackware . | . . . Protection 1 | . 1 . Artifact . | . . . Weapon 5 | 2 . 3 Energy Gun 1 | . . 1 Energy Cannon . | . . . Ballistic Gun 4 | 2 . 2 Ballistic Cannon . | . . . Launcher . | . . . Special Weapon . | . . . Impact Weapon . | . . . Slashing Weapon . | . . . Piercing Weapon . | . . . Special Melee Weapon . | . . . Unidentified Prototypes . | . . . Parts Lost 3 | . . 3 Power . | . . . Propulsion 2 | . . 2 Utility . | . . . Weapon 1 | . . 1 Highest Loss Streak 3 | . . 3 To Critical Strikes . | . . . Average Slot Usage (%) 95 | . 96 94 Engine 8 | . 14 1 Core 4 | . . 9 Wheel 15 | . 28 . Flight 18 | . . 42 Storage 12 | . 14 11 Processor 9 | . 7 11 Protection 1 | . 3 . Energy Gun 3 | . . 7 Ballistic Gun 20 | . 28 11 Naked Turns . | . . . Heaviest Build 17 | 14 17 14 Greatest Support 20 | 20 20 16 Greatest Overweight (x) 2 | . . 2 Average Overweight (x) . | . . . Largest Inventory Capacity 8 | 8 8 8 Average Capacity 7 | 6 8 8 Most Carried 8 | . 8 8 Average Carried 4 | . 2 7 Final Capacity 8 | 8 8 8 Final Carried 8 | . 8 6 Class Distribution -------------------- 64% | Mutant 28% | Sprinter 7% | Scavenger-Sprinter Dominant Class ---------------- Mutant | -10/Materials Sprinter | -9/Materials Resources | -11 -10 -9 ----------- Run | Yrd Mat Mat Matter Collected 433 | 257 118 58 Remotely . | . . . Salvage Created 271 | . 154 117 Parts 22 | . 15 7 Haulers Intercepted . | . . . Recyclers Shooed . | . . . Parts Field Recycled . | . . . Retrieved Matter . | . . . Parts Self-Destructed . | . . . Prevented . | . . . Kills | -11 -10 -9 ------- Run | Yrd Mat Mat Combat Hostiles Destroyed 12 | . 7 5 Guns 12 | . 7 5 Classes Destroyed 3 | . 3 . Operator 1 | . 1 . Swarmer 10 | . 6 4 Grunt 2 | . 1 1 Best Kill Streak 4 | . 4 3 Combat Bots Only 4 | . 4 3 Max Kills in Single Turn 1 | . 1 1 Gunslinging . | . . . Exploded . | . . . Melee . | . . . Uniques/NPCs Destroyed . | . . . Combat | -11 -10 -9 -------- Run | Yrd Mat Mat Hostile Shots Fired 69 | . 21 48 Missed 28 | . 8 20 Damage Taken 357 | . 108 249 Core 51 | . 24 27 Absorbed by Shields . | . . . Core Remaining (%) 95 | 100 90 . Volleys Fired 43 | . 23 20 Largest 2 | . 2 2 Hottest 70 | . 40 70 Shots Fired 76 | . 46 30 Gun 76 | . 46 30 Cannon . | . . . Launcher . | . . . Special . | . . . Kinetic 66 | . 46 20 Thermal 10 | . . 10 Explosive . | . . . Electromagnetic . | . . . Robot Hit Streak 4 | . 4 3 Robot Miss Streak 4 | . 3 4 Penetration Max . | . . . Secondary Targets 1 | . 1 . Max Gunslinging Chain 1 | . 1 . Shots Hit Robots 32 | . 19 13 Core Hits 16 | . 10 6 Critical Kills . | . . . Critical Parts Destroyed 1 | . 1 . Critical Strikes 1 | . 1 . Destroy 1 | . 1 . Melee Attacks . | . . . Impact . | . . . Slashing . | . . . Piercing . | . . . Sneak Attacks . | . . . Combat Hostiles . | . . . Follow-up Attacks . | . . . Damage Inflicted 390 | . 239 151 Guns 390 | . 239 151 Cannons . | . . . Explosions . | . . . Melee . | . . . Ramming . | . . . Kinetic 342 | . 239 103 Thermal 48 | . . 48 Explosive . | . . . Electromagnetic . | . . . Impact . | . . . Slashing . | . . . Piercing . | . . . Highest Corruption 1 | . 1 . Average Corruption 1 | . 1 . Corruption Purged . | . . . Corruption Blocked . | . . . Effects 1 | . 1 . Message Errors 1 | . 1 . Overload Shots . | . . . Overflow Damage . | . . . Projectiles . | . . . Explosions . | . . . Melee . | . . . Knockbacks . | . . . Impact . | . . . Kinetic . | . . . Secondary . | . . . Self-Inflicted Damage . | . . . Shots . | . . . Rammed . | . . . Targets Rammed . | . . . Kicked . | . . . Crushed . | . . . Highest Temperature 171 | . 9 171 Average Temperature 72 | . 4 77 Received Heat Transfer 168 | . 21 147 Siege Activations . | . . . Robots Corrupted . | . . . Combat Hostiles . | . . . Parts Fried . | . . . Impact Corruptions . | . . . Robots Melted . | . . . Combat Hostiles . | . . . Parts Melted . | . . . Heat Transferred 148 | . . 148 Parts Sabotaged . | . . . Parts Stolen . | . . . Parts Stripped . | . . . Power Chain Reactions . | . . . Alert | -11 -10 -9 ------- Run | Yrd Mat Mat Peak Influence 285 | . 221 285 Initial 92 | . . 92 Average 126 | . 97 188 Maximum Alert Level 1 | . 1 1 Low Security (%) 76 | 100 81 66 Level 1 23 | . 18 33 Level 2 . | . . . Level 3 . | . . . Level 4 . | . . . Level 5 . | . . . High Security . | . . . Max Security . | . . . Squads Dispatched 3 | . 1 2 Investigation 1 | . . 1 Extermination . | . . . Reinforcement 2 | . 1 1 Assault . | . . . Garrison . | . . . Intercept . | . . . Searches Triggered . | . . . Construction Impeded . | . . . Haulers Reinforced . | . . . Active Scanning Responses . | . . . Cargo Convoy Interrupts . | . . . Stealth | -11 -10 -9 --------- Run | Yrd Mat Mat Distress Signals 2 | . . 2 Communications Jammed . | . . . Distress Signals . | . . . Times Spotted 34 | . 14 20 Peak Tracking Total 11 | . 4 11 Tactical Retreats 4 | . 1 3 Traps | -11 -10 -9 ------- Run | Yrd Mat Mat Traps Triggered 6 | . . 6 Indirectly . | . . . Trap Hack Attempts . | . . . Triggered . | . . . Disarmed . | . . . Reprogrammed . | . . . Reused . | . . . Traps Extracted . | . . . Installed . | . . . Triggered . | . . . Machines | -11 -10 -9 ---------- Run | Yrd Mat Mat Machines Disabled . | . . . Max in Single Turn . | . . . Machines Repaired . | . . . Machines Dismantled . | . . . Machines Sabotaged . | . . . Overloaded Fab Kills . | . . . Hacking | -11 -10 -9 --------- Run | Yrd Mat Mat Machines Accessed 6 | . 2 4 Terminals 6 | . 2 4 Fabricators . | . . . Repair Stations . | . . . Recycling Units . | . . . Scanalyzers . | . . . Garrison Access . | . . . Total Hacks 12 | . 5 7 Successful 5 | . 1 4 Failed 7 | . 4 3 Catastrophic 4 | . 3 1 Database Lockouts . | . . . Manual 4 | . 2 2 Terminals 12 | . 5 7 Fabricators . | . . . Repair Stations . | . . . Recycling Units . | . . . Scanalyzers . | . . . Garrison Access . | . . . Terminal Hacks 5 | . 1 4 Prototype ID Bank 2 | . 1 1 Locate Traps 1 | . . 1 Dispatch Records 1 | . . 1 Zone Layout 1 | . . 1 Fabricator Hacks . | . . . Repair Station Hacks . | . . . Recycling Unit Hacks . | . . . Scanalyzer . | . . . Garrison Access Hacks . | . . . Unauthorized Hacks . | . . . Terminals . | . . . Fabricators . | . . . Repair Stations . | . . . Recycling Units . | . . . Scanalyzers . | . . . Garrison Access . | . . . Data Cores Recovered . | . . . Used . | . . . Hacking Detections 5 | . 2 3 Full Trace Events 1 | . 1 . Feedback Events 1 | . 1 . Corruption 1 | . 1 . Feedback Blocked . | . . . Robot Schematics Acquired . | . . . Robots Built . | . . . Authchips . | . . . Time . | . . . Total Robot Build Rating . | . . . Part Schematics Acquired . | . . . Parts Built . | . . . Authchips . | . . . Time . | . . . Total Part Build Rating . | . . . Parts Repaired . | . . . Time . | . . . Parts Recycled . | . . . Recycled Matter . | . . . Retrieved Matter . | . . . Retrieved Components . | . . . Parts Scanalyzed . | . . . Part Schematics Acquired . | . . . Parts Damaged . | . . . Bothacking | -11 -10 -9 ------------ Run | Yrd Mat Mat Used RIF Installer . | . . . Robots Hacked . | . . . Non-combat . | . . . Combat . | . . . Robot Hacks Applied . | . . . Relay Couplers Released . | . . . Fabnet Peak Effective % . | . . . Robots Rewired . | . . . Allies Hacked . | . . . Hacks Repelled . | . . . Allies | -11 -10 -9 -------- Run | Yrd Mat Mat Total Allies . | . . . Largest Group . | . . . Highest-Rated Group . | . . . Highest-Rated Ally . | . . . Total Orders . | . . . Ally Attacks . | . . . Total Damage . | . . . Kills . | . . . Allies Corrupted . | . . . Allies Melted . | . . . Intel | -11 -10 -9 ------- Run | Yrd Mat Mat Robot Analysis Total . | . . . Derelict Logs Recovered . | . . . Drone Launches . | . . . Drone Recoveries . | . . . Exploration | -11 -10 -9 ------------- Run | Yrd Mat Mat Turns Passed 440 | 34 226 180 Spaces Moved 502 | 32 180 290 Core 1 | 1 . . Treads . | . . . Legs . | . . . Wheels 211 | 31 180 . Hover . | . . . Flight 290 | . . 290 Fastest Speed 29 | 50 80 29 Average Speed 51 | 79 80 31 Slowest Speed 200 | 80 80 200 Overloaded Moves . | . . . Propulsion Burnouts . | . . . Robots Hopped 1 | . . 1 Cave-ins Triggered . | . . . Exploration Rate (%) 19 | 3 29 25 Regions Visited 2 Branch Regions . Pre-discovered Areas . | . . . Known Exits Taken . | . . . Unknown Exits Taken 2 | 1 1 . Scrap Searched . | . . . Spaces Dug . | . . . Terrain Destroyed . | . . . Melee . | . . . Projectile . | . . . AOE . | . . . Terrain Rammed . | . . . Walls Destroyed . | . . . Machines Disabled . | . . . Actions | -11 -10 -9 --------- Run | Yrd Mat Mat Total 600 | 37 215 348 Wait . | . . . Move 498 | 31 179 288 Hop 1 | . . 1 Pick Up 17 | . 8 9 Fast Attach 14 | 6 1 7 Attach 5 | . 1 4 Detach 1 | . 1 . Swap 8 | . 1 7 Drop 13 | . 1 12 Fire 43 | . 23 20 Melee . | . . . Ram . | . . . Kick . | . . . Crush . | . . . Escape Stasis . | . . . Rewire . | . . . Trap . | . . . Miscellaneous . | . . . Route ------- -11/Scrapyard -10/Materials -9/Materials History --------- Turn | Location | Event 12 | -11/Scrapyard | Discovered new exit (range 14) 35 | -11/Scrapyard | Entered Materials 230 | -10/Materials | Discovered new exit (range 5) 261 | -10/Materials | Entered another Materials area 261 | -9/Materials | Evolved 2 slots: Propulsion x2 441 | -9/Materials | Self-destructed Last Messages --------------- 00430_ Acquired Assault Rifle. 00432_ Acquired VTOL Module. 00435_ Triggered Blade Trap. 00435_ Massive razor-sharp blades shoot up from within the floor. 00435_ Lgt. Nuclear Core severed. 00435_ Assault Rifle severed. 00435_ S-10 Pest destroyed. 00435_ Acquired Assault Rifle. 00437_ Acquired Lgt. Nuclear Core. 00440_ Triggered Blade Trap. 00440_ Massive razor-sharp blades shoot up from within the floor. 00440_ Assault Rifle severed. 00440_ VTOL Module severed. 00440_ Lgt. Nuclear Core severed. 00440_ Triggered Blade Trap. 00440_ Massive razor-sharp blades shoot up from within the floor. 00440_ Flight Unit severed. Map ----- +----------------------------------------------------+ | """ #?# ## #?????# ?# #???? | | #?# ## #?????# ?# #???? | | ###+### ## ] #?????# # #???? | | # # ## #?????# # #???? | | # ## """"" #?????#! + #???? | | T # ## """"" ! #?????# # #???? | | # ## """"" #?????# # #???? | | # # ## #?????# ?# #???? | | ## ## ##+###+#################### #???? | | ?# ## ## + * #???#! #???? | | ?# ## ## # #???#= = #???? | | ## ## ## + """ """ #???#*! #???? | | ## ## ## # """ """ #???#** #???? | | # # ## # """ """ #???# !! #???? | | # # #???#! #???? | | + T= + #???##### #???? | | # # #???????# #???? | | #/ #############/##+####???????# #???? | | ## ##???????????#% #??????????# #???? | | ## #????????????# #??????????# #???? | | ## ###??????????# #???######## #???? | | ?# #????????????# #???# # #???? | | ?# #????????????# #???# # * #???? | | ? ????????????# #???# """ + =%#???? | | #???????????# =##### """ #= #???? | | ! +???????????# g ==*@[+ """ #[* #???? | | #???????????#g##+##### # #???? | | """% #???????????# # ??######## #???? | | """ #???????????#a# *#???????# #???? | | ?"" #???????????# #! #???????# #???? | | ?? #???######### # #???????# #???? | | ?a? a #######???????# #???? | | ??? #????###########?????????????# #???? | | ??????????????????????????????????# #???? | | ??????????????????????????????????# #???? | | ??????????????????????????????????# #???? | | ??????????????????????????????????# #???? | | ??????????????????????????????????+ #???? | | ??????????????????????????????????# #???? | | ??????????????????????????????????? ????? | | ??????????????????????????????????????????? | | ??????????????????????????????????????????? | | ??????????????????????????????????????????? | | ??????????????????????????????????????????? | | ??????????????????????????????????????????? | | ??????????????????????????????????????????? | | ??????????????????????????????????????????? | | ??????????????????????????????????????????? | | ??????????????????????????????????????????? | | ??????????????????????????????????????????? | +----------------------------------------------------+ Best States ------------- Heat Dissipation 28 Energy Generation 14 Energy Capacity 250 Matter Stores 297 Matter Capacity 300 Sight Range 16 Terrain Scan Density 10 Armor Coverage 150 Evasion (%) 64 Item Schematics ----------------- None Robot Schematics ------------------ None Fabricated ------------ Nothing Alien Tech Used ----------------- None Achievements -------------- None Challenges ------------ None Game ------ Seed FactoryWaveDoublenader Manual? 0 Play Time 00:15:34 Cumulative 9.6 hours Start 2024.04.10 @ 00:09:09 End 2024.04.10 @ 00:22:48 Sessions 1 Manual Loads 0 Difficulty Rogue Special Mode None Game No. 9 Rogue 9 Adventurer 0 Explorer 0 Win Type - Total 0 Types 0/0/0/0/0/0/0/0/0 Lore% 14 Gallery% 14 Achievement% 10 Wizard Run 0 Options --------- Layout 1 ASCII 0 Keyboard 0 Movement Mouse Keybinds 0 Fullscreen 1 Font 24/Smallcaps Map View 50x35 Zoom Use 0% Tactical HUD 1 Map Filters NONE Filters NONE Steam 1 RUN: d6f3383e-cd99-4ca4-85d0-72183a8ee522